bitfinex-derivatives/quotes_BNBF0:USTF0_20250425
["timestamp","ask_amount","ask_price","bid_price","bid_amount"]
[1745551937536,0.28998308,601.51,599.26,0.30612943]
[1745551937735,0.28998308,601.51,599.27,0.30612943]
[1745551938035,0.28998308,601.51,599.19,0.28998308]
[1745551938235,0.28998308,601.51,599.2,0.30612761]
[1745551938434,0.28998308,601.51,599.21,0.30612761]
[1745551938734,0.28998308,601.51,599.22,0.30612761]
[1745551938930,0.28998308,601.51,599.23,0.30612761]
[1745551939134,0.28998308,601.51,599.24,0.30612761]
[1745551939333,1.25759526,601.3,599.32,1.0596617]
[1745551939536,1.25759526,601.3,599.33,0.30612761]
[1745551939735,1.25759526,601.3,599.34,0.30612761]
[1745551940034,1.25759526,601.3,599.35,0.30612761]
[1745551940231,1.25759526,601.3,599.36,0.30612761]
[1745551940535,1.25759526,601.3,599.37,0.30612761]
[1745551940732,1.25759526,601.3,599.33,0.30612761]
[1745551940933,1.25759526,601.3,599.34,0.30612761]
[1745551941235,1.25759526,601.3,599.35,0.30612761]
[1745551941430,1.25759526,601.3,599.33,0.30612761]
[1745551942534,1.25759526,601.14,599.36,1.0596617]
[1745551942735,1.25759526,601.14,599.37,0.30612761]
[1745551944237,1.25759526,601.14,599.36,1.0596617]
[1745551944432,1.25759526,601.14,599.37,0.30617058]
[1745551944934,1.25759526,601.19,599.37,0.30617058]
[1745551945236,1.25759526,601.19,599.38,0.30617058]
[1745551945434,1.25759526,601.19,599.28,0.30617058]
[1745551945634,0.29004713,601.18,599.29,0.30617058]
[1745551945930,0.29004713,601.18,599.3,0.30617266]
[1745551946135,0.29004713,601.18,599.28,0.30617266]
[1745551948138,0.29004713,601.18,599.28,1.55617266]
[1745551948338,1.25759526,601.27,599.29,0.30617266]
[1745551948539,0.29003625,601.17,599.29,0.30617266]
[1745551948838,1.25759526,601.27,599.29,0.30617266]
[1745551949540,0.29003625,601.26,599.29,0.30617266]
[1745551950539,0.29003625,601.26,599.28,2.167]
[1745551950739,0.29003625,601.26,599.29,0.30617209]
[1745551951240,1.25759526,601.27,599.29,0.30617209]
[1745551951541,1.25759526,601.25,599.29,1.49317209]
[1745551951841,1.54763151,601.25,599.3,0.30617209]
[1745551952136,1.54763151,601.25,599.29,1.187]
[1745551952340,1.54763151,601.25,599.3,0.30617266]
[1745551953541,1.25759526,601.15,599.34,1.0596617]
[1745551953739,1.25759526,601.15,599.35,0.30617266]
[1745551954740,0.29004351,601.14,599.35,0.30617266]
[1745551955339,0.29004351,601.14,599.34,1.0596617]
[1745551955541,0.29004351,601.14,599.35,0.30618806]
[1745551956937,0.29004351,601.14,599.34,1.0596617]
[1745551957137,0.29004351,601.14,599.35,0.30619297]
[1745551957339,1.25759526,601.17,599.3,0.30619297]
[1745551957543,1.25759526,601.17,599.31,0.30619297]
[1745551957840,0.29004713,601.13,599.32,0.30619297]
[1745551958140,0.29004713,601.13,599.3,0.30619297]
[1745551958341,0.29004713,601.13,599.31,0.30619297]
[1745551958541,0.29004713,601.13,599.3,0.30619297]
[1745551958742,0.29004713,601.13,599.31,0.30619297]
[1745551959042,0.29004713,601.13,599.32,0.30619297]
[1745551959241,0.29004713,601.13,599.3,0.30619297]
[1745551959542,0.29004713,601.13,599.31,0.30619297]
[1745551959735,0.29004713,601.13,599.3,0.30619297]
[1745551960042,1.25759526,601.06,599.32,1.0596617]
[1745551960240,1.25759526,601.06,599.33,0.30619297]
[1745551960441,0.29003988,601.05,599.33,0.30619297]
[1745551961742,0.29003988,601.05,599.32,1.0596617]
[1745551961942,0.29003988,601.05,599.33,0.30614668]
[1745551962438,0.29003988,601.05,599.38,1.0596617]
[1745551962641,0.29003988,601.05,599.39,0.30614668]
[1745551963240,1.25759526,601.18,599.39,0.30614668]
[1745551963443,1.25759526,601.18,599.4,0.30615173]
[1745551963642,0.29001813,601.17,599.39,0.30615173]
[1745551963842,0.29001813,601.17,599.4,0.30615173]
[1745551964042,0.29001813,601.17,599.39,0.30615173]
[1745551964243,0.29001813,601.17,599.4,0.30615173]
[1745551964445,0.29001813,601.17,599.41,0.30615173]
[1745551964644,0.29001813,601.17,599.39,0.30615173]
[1745551964946,0.29001813,601.17,599.4,0.30615173]
[1745551965141,0.29001813,601.17,599.39,1.36581343]
[1745551965345,1.25759526,601.14,599.4,0.30615173]
[1745551966749,0.29001208,601.13,599.41,0.30613483]
[1745551966943,0.29001208,601.13,599.4,0.30613483]
[1745551967143,0.29001208,601.13,599.41,0.30613483]
[1745551967346,0.29001208,601.13,599.4,0.30613483]
[1745551967545,0.29001208,601.13,599.41,0.30613483]
[1745551967744,0.29001208,601.13,599.4,0.30613483]
[1745551967949,0.29001208,601.13,599.41,0.30613483]
[1745551968146,0.29001208,601.13,599.42,0.30613483]
[1745551968351,0.29001208,601.13,599.46,1.0596617]
[1745551968352,1.25759526,601.12,599.46,1.0596617]
[1745551968556,1.25759526,601.12,599.47,0.30613483]
[1745551969753,0.29000604,601.11,599.47,0.30613483]
[1745551971354,0.29000604,601.11,599.46,1.0596617]
[1745551971553,0.29000604,601.11,599.47,0.30613758]
[1745551972252,1.25759526,601.13,599.47,0.30613758]
[1745551972957,1.25759526,601.13,599.46,1.0596617]
[1745551973155,1.25759526,601.13,599.48,0.30613896]
[1745551973458,1.25759526,601.13,599.49,0.30613896]
[1745551973655,0.29000483,601.12,599.47,0.30613896]
[1745551973852,0.29000483,601.12,599.46,1.0596617]
[1745551974056,0.29000483,601.12,599.47,0.30613699]
[1745551974657,0.29000483,601.12,599.46,1.0596617]
[1745551974858,0.29000483,601.12,599.47,0.30614373]
[1745551975259,1.25759526,601.13,599.47,0.30614373]
[1745551976660,0.29002175,601.12,599.47,0.30614373]
[1745551977462,0.29002175,601.12,599.48,1.098]
[1745551977660,0.29002175,601.12,599.49,0.30614373]
[1745551977861,0.29002175,601.12,599.48,2.328]
[1745551978056,0.29002175,601.12,599.49,0.30615372]
[1745551978262,1.25759526,601.13,599.49,0.30615372]
[1745551978554,0.29001933,601.12,599.49,0.30615372]
[1745551979361,0.29001933,601.12,599.48,2.328]
[1745551979561,0.29001933,601.12,599.49,0.30615594]
[1745551980663,0.29001933,601.12,599.48,2.328]
[1745551988369,0.29001933,601.12,599.49,1.006]
[1745551993276,1.25759526,601.24,599.49,1.006]
[1745551993571,0.29004472,601.11,599.49,1.006]
[1745551998772,0.29004472,601.11,599.5,0.861]
[1745551998773,1.25759526,601.01,599.5,0.861]
[1745551999576,0.29008461,601.0,599.5,0.861]
[1745552002276,1.25759526,601.08,599.5,0.861]
[1745552002475,0.29006889,600.99,599.5,0.861]
[1745552002781,1.25759526,601.08,599.5,0.861]
[1745552003480,0.29007614,601.07,599.5,0.861]
[1745552004582,1.25759526,601.05,599.5,0.861]
[1745552005678,0.29007977,601.04,599.5,0.861]
[1745552006983,0.29007977,601.04,599.51,1.111]
[1745552007377,1.25759526,600.88,599.51,1.111]
[1745552007676,1.25759526,600.88,599.52,0.897]
[1745552008685,0.29009791,600.87,599.52,0.897]
[1745552010082,1.54769317,600.87,599.52,0.897]
[1745552011283,1.25759526,600.87,599.52,0.897]
[1745552011586,0.29007735,600.86,599.52,0.897]
[1745552014285,1.25759526,600.91,599.52,0.897]
[1745552014579,0.29007252,600.85,599.52,0.897]
[1745552017286,1.25759526,600.96,599.52,0.897]
[1745552017792,0.29006647,600.84,599.52,0.897]
[1745552017987,1.25759526,601.13,599.52,0.897]
[1745552018687,0.29004592,601.12,599.52,0.897]
[1745552020283,1.25759526,601.16,599.52,0.897]
[1745552020688,0.2900423,601.11,599.52,0.897]
[1745552023293,1.25759526,601.18,599.52,0.897]
[1745552023487,0.29003988,601.1,599.52,0.897]
[1745552023891,1.25759526,601.18,599.52,1.805]
[1745552024490,1.25759526,601.31,599.52,1.805]
[1745552024692,0.29003988,601.17,599.52,1.805]
[1745552024893,1.25759526,601.31,599.52,1.805]
[1745552025192,0.29002417,601.16,599.52,1.805]
[1745552025395,1.25759526,601.31,599.52,1.805]
[1745552025695,0.29002417,601.15,599.52,1.805]
[1745552025897,1.25759526,601.31,599.52,1.805]
[1745552026596,0.29002417,601.3,599.52,1.805]
[1745552028598,1.25759526,601.27,599.52,1.805]
[1745552029491,0.290029,601.26,599.52,1.805]
[1745552031295,1.54762426,601.26,599.52,1.805]
[1745552032301,1.25759526,601.26,599.52,1.805]
[1745552033599,0.29003021,601.25,599.52,1.805]
[1745552034408,1.25759526,600.91,599.52,1.805]
[1745552035707,0.29007252,600.9,599.52,1.805]
[1745552035907,0.29007252,600.9,599.52,2.758]
[1745552038308,1.25759526,600.92,599.52,2.758]
[1745552038705,0.29007131,600.89,599.52,2.758]
[1745552041304,1.25759526,600.93,599.52,2.758]
[1745552041305,1.25759526,600.93,599.52,3.827]
[1745552041502,0.2900701,600.88,599.52,3.827]
[1745552044211,1.25759526,600.93,599.52,3.827]
[1745552044506,0.2900701,600.87,599.52,3.827]
[1745552045112,0.2900701,600.87,599.53,0.30620629]
[1745552047213,0.2900701,600.87,599.52,2.022]
[1745552047514,1.25759526,600.93,599.53,0.30619594]
[1745552047715,0.29005559,600.86,599.53,0.30619594]
[1745552049216,0.29005559,600.86,599.53,2.21919594]
[1745552049416,0.29005559,600.86,599.54,0.30619594]
[1745552050317,1.25759526,600.9,599.54,0.30619594]
[1745552050617,0.29005801,600.85,599.54,0.30619594]
[1745552053317,1.25759526,600.87,599.54,0.30619594]
[1745552053513,0.29003263,600.86,599.54,0.30619594]
[1745552053812,0.29003263,600.86,599.54,1.50219594]
[1745552054013,0.29003263,600.86,599.55,0.30619594]
[1745552054922,0.29003263,600.86,599.54,1.196]
[1745552055119,0.29003263,600.86,599.55,0.30612866]
[1745552056313,1.25759526,601.24,599.55,0.30612866]
[1745552056516,0.28998429,600.87,599.54,1.196]
[1745552056714,0.28998429,600.87,599.55,0.3061303]
[1745552056916,1.25759526,601.24,599.55,0.3061303]
[1745552057622,0.28998429,601.23,599.55,0.3061303]
[1745552059320,1.25759526,601.27,599.55,0.3061303]
[1745552059615,0.28998067,601.22,599.54,1.196]
[1745552059820,0.28998067,601.22,599.55,0.30613145]
[1745552062217,1.25759526,601.3,599.55,0.30613145]
[1745552062523,0.28994322,601.21,599.55,0.30613145]
[1745552062718,1.25759526,601.3,599.55,1.20113145]
[1745552062918,1.25759526,601.3,599.55,0.895]
[1745552063522,0.28994201,601.29,599.55,0.895]
[1745552067426,0.28994201,601.29,599.55,1.842]
[1745552068432,1.25759526,601.89,599.55,1.842]
[1745552068632,0.28988405,601.28,599.55,1.842]
[1745552068828,1.25759526,601.89,599.55,1.842]
[1745552069627,0.28988525,601.88,599.55,1.842]
[1745552071233,1.25759526,601.89,599.55,1.842]
[1745552071533,0.28988525,601.87,599.55,1.842]
[1745552072835,1.25759526,601.84,599.56,0.30609648]
[1745552074730,0.28989129,601.83,599.56,0.30609648]
[1745552075234,1.25759526,601.54,599.56,0.30609648]
[1745552077635,0.28992752,601.53,599.56,0.30609648]
[1745552077939,1.25759526,601.41,599.56,0.30609648]
[1745552078939,1.25759526,601.41,599.55,0.947]
[1745552079241,1.25759526,601.41,599.56,0.30606462]
[1745552079740,1.25759526,601.41,599.56,1.20006462]
[1745552080041,1.25759526,601.41,599.57,0.30606462]
[1745552080440,1.25759526,601.51,599.57,0.30606462]
[1745552080740,0.28992269,601.4,599.58,0.30605586]
[1745552080933,1.25759526,601.51,599.59,0.30605586]
[1745552081136,1.25759526,601.51,599.57,0.30605586]
[1745552081741,0.28991061,601.5,599.57,0.30605586]
[1745552082242,0.28991061,601.5,599.56,0.894]
[1745552082440,0.28991061,601.5,599.57,0.30606123]
[1745552083042,0.28991061,601.5,599.58,1.141]
[1745552083240,0.28991061,601.5,599.59,0.30606123]
[1745552083843,0.28991061,601.5,599.58,1.141]
[1745552084138,0.28991061,601.5,599.59,0.30606123]
[1745552086245,1.25759526,601.61,599.59,0.30606123]
[1745552086444,1.25759526,601.63,599.59,0.30606123]
[1745552086745,0.28990578,601.6,599.59,0.30606123]
[1745552088646,0.28990578,601.6,599.58,1.141]
[1745552088945,0.28990578,601.6,599.59,0.3061239]
[1745552089145,1.25759526,601.41,599.59,0.3061239]
[1745552089539,0.28995167,601.4,599.59,0.3061239]
[1745552090948,0.28995167,601.4,599.6,0.821]
[1745552091247,0.28995167,601.4,599.61,0.3061239]
[1745552091746,1.25759526,601.26,599.61,0.3061239]
[1745552092649,0.28996738,601.25,599.61,0.3061239]
[1745552093649,0.28996738,601.25,599.62,0.30611788]
[1745552093851,1.25759526,601.24,599.61,0.30611788]
[1745552094148,1.25759526,601.24,599.62,0.30611788]
[1745552094351,1.25759526,601.24,599.61,0.30611788]
[1745552094651,1.25759526,601.24,599.62,0.30611788]
[1745552094845,1.25759526,601.24,599.61,0.30611788]
[1745552095044,1.25759526,601.24,599.62,0.30611788]
[1745552095249,1.25759526,601.24,599.61,0.30611788]
[1745552095644,0.28996979,601.23,599.61,0.30611788]
[1745552095945,0.28996979,601.23,599.6,0.821]
[1745552096146,0.28996979,601.23,599.62,1.059]
[1745552096345,0.28996979,601.23,599.63,0.30611788]
[1745552098354,1.25759526,601.26,599.63,0.30611788]
[1745552098853,0.28996496,601.25,599.63,0.30611788]
[1745552100758,1.25759526,601.2,599.63,0.30611788]
[1745552101356,1.25759526,601.2,599.64,0.30611815]
[1745552101558,1.25759526,601.2,599.63,0.30611815]
[1745552101758,0.28997221,601.19,599.64,0.30611815]
[1745552101953,0.28997221,601.19,599.63,0.30611815]
[1745552102158,0.28997221,601.19,599.65,1.165]
[1745552102358,0.28997221,601.19,599.66,0.30611815]
[1745552102560,0.28997221,601.19,599.65,1.165]
[1745552107262,1.25759526,601.29,599.65,1.165]
[1745552107560,0.28995771,601.18,599.65,1.165]
[1745552107861,1.25759526,601.29,599.65,2.145]
[1745552108261,1.25759526,601.45,599.65,2.145]
[1745552108760,0.28993839,601.44,599.65,2.145]
[1745552110263,1.25759526,601.45,599.65,2.145]
[1745552110561,0.28993839,601.43,599.65,2.145]
[1745552112064,0.28993839,601.43,599.65,3.375]
[1745552113260,1.25759526,601.45,599.65,3.375]
[1745552113466,1.25759526,601.42,599.65,3.375]
[1745552116770,0.28994201,601.41,599.65,3.375]
[1745552119274,1.25759526,601.42,599.65,3.375]
[1745552119470,1.25759526,601.18,599.65,3.375]
[1745552122177,1.25759526,601.27,599.65,3.375]
[1745552122678,0.29,601.17,599.65,3.375]
[1745552122880,1.25759526,601.27,599.65,4.687]
[1745552123573,0.28998913,601.26,599.65,4.687]
[1745552124875,1.54758439,601.26,599.65,4.687]
[1745552125281,1.25759526,601.26,599.65,4.687]
[1745552125680,0.28998308,601.25,599.65,4.687]
[1745552128482,1.25759526,601.3,599.65,4.687]
[1745552128683,0.28997825,601.24,599.65,4.687]
[1745552131285,1.25759526,601.31,599.65,4.687]
[1745552131581,0.28997704,601.23,599.65,4.687]
[1745552131779,1.25759526,601.31,599.65,4.687]
[1745552132685,0.28997704,601.3,599.65,4.687]
[1745552133688,1.25759526,601.13,599.65,4.687]
[1745552134588,0.28999879,601.12,599.65,4.687]
[1745552137287,1.25759526,601.29,599.65,4.687]
[1745552137486,0.28998671,601.11,599.65,4.687]
[1745552137788,1.25759526,601.29,599.65,4.687]
[1745552138789,1.25759526,601.27,599.65,4.687]
[1745552141190,2.13965861,601.94,599.65,4.687]
[1745552141191,1.25759526,601.32,599.65,4.687]
[1745552141591,0.29000967,601.31,599.65,4.687]
[1745552143294,1.25759526,601.32,599.65,4.687]
[1745552143693,0.29000967,601.3,599.65,4.687]
[1745552152302,1.25759526,601.51,599.65,4.687]
[1745552152602,0.28998188,601.29,599.65,4.687]
[1745552152903,1.25759526,601.51,599.65,4.687]
[1745552153202,1.25759526,601.42,599.65,4.687]
[1745552153801,0.28999275,601.41,599.65,4.687]
[1745552155603,1.25759526,601.06,599.65,4.687]
[1745552156602,0.29003625,601.05,599.65,4.687]
[1745552158299,1.25759526,601.02,599.65,4.687]
[1745552161702,0.29004109,601.01,599.65,4.687]
[1745552164009,1.25759526,600.87,599.65,4.687]
[1745552164611,0.29005922,600.86,599.65,4.687]
[1745552167310,1.25759526,600.9,599.65,4.687]
[1745552168612,0.29004592,600.89,599.65,4.687]
[1745552170313,1.25759526,601.02,599.65,4.687]
[1745552170609,0.29002175,600.88,599.65,4.687]
[1745552170908,1.25759526,601.02,599.65,4.687]
[1745552171114,1.25759526,601.06,599.65,4.687]
[1745552171715,0.29001692,601.05,599.65,4.687]
[1745552173313,1.25759526,601.06,599.65,4.687]
[1745552173614,0.2900145,601.04,599.65,4.687]
[1745552176217,1.25759526,601.38,599.65,4.687]
[1745552176516,0.28998792,601.03,599.65,4.687]
[1745552176812,1.25759526,601.34,599.65,4.687]
[1745552178818,0.29000242,601.33,599.65,4.687]
[1745552179320,1.25759526,601.09,599.65,4.687]
[1745552181822,0.29000242,601.32,599.65,4.687]
[1745552181823,1.25759526,601.12,599.65,4.687]
[1745552182623,0.290029,601.11,599.65,4.687]
[1745552183824,1.25759526,601.12,599.65,4.687]
[1745552184623,1.25759526,601.1,599.65,4.687]
[1745552187327,1.25759526,601.13,599.65,4.687]
[1745552189624,1.25759526,601.06,599.65,4.687]
[1745552190227,0.29002659,601.05,599.65,4.687]
[1745552191328,1.25759526,601.06,599.65,4.687]
[1745552191631,0.29002659,601.04,599.65,4.687]
[1745552192329,1.25759526,601.01,599.65,4.687]
[1745552194632,0.29003263,601.0,599.65,4.687]
[1745552197436,1.25759526,601.22,599.65,4.687]
[1745552197632,0.29000846,600.99,599.65,4.687]
[1745552197933,1.25759526,601.22,599.65,4.687]
[1745552198730,0.29000725,601.21,599.65,4.687]
[1745552199736,1.25759526,601.19,599.65,4.687]
[1745552200737,0.29001088,601.18,599.65,4.687]
[1745552205136,1.25759526,601.08,599.65,4.687]
[1745552206739,0.29002417,601.07,599.65,4.687]
[1745552207741,1.25759526,601.05,599.65,4.687]
[1745552209643,0.29002779,601.04,599.65,4.687]
[1745552212342,1.25759526,601.12,599.65,4.687]
[1745552212642,0.290029,601.03,599.65,4.687]
[1745552212937,1.25759526,601.12,599.65,4.687]
[1745552213741,0.290029,601.11,599.65,4.687]
[1745552213943,1.25759526,600.98,599.65,4.687]
[1745552218545,1.25759526,600.95,599.65,4.687]
[1745552220951,0.29003625,600.97,599.65,4.687]
[1745552221351,1.25759526,601.11,599.65,4.687]
[1745552222646,0.29002054,601.1,599.65,4.687]
[1745552227348,1.25759526,601.16,599.65,4.687]
[1745552227653,0.28999517,601.09,599.65,4.687]
[1745552230355,1.25759526,601.22,599.65,4.687]
[1745552230649,0.28997342,601.08,599.65,4.687]
[1745552230956,1.25759526,601.22,599.65,4.687]
[1745552231255,1.25759526,601.16,599.65,4.687]
[1745552231855,0.28998067,601.15,599.65,4.687]
[1745552233358,1.25759526,601.16,599.65,4.687]
[1745552233654,0.28998067,601.14,599.65,4.687]
[1745552236358,1.25759526,601.23,599.65,4.687]
[1745552236663,0.28997221,601.13,599.65,4.687]
[1745552236962,1.25759526,601.23,599.65,4.687]
[1745552237663,0.28997704,601.22,599.65,4.687]
[1745552239369,1.25759526,601.32,599.65,4.687]
[1745552239767,0.28996617,601.31,599.65,4.687]
[1745552240370,1.25759526,601.27,599.65,4.687]
[1745552242667,0.28997221,601.26,599.65,4.687]
[1745552244668,0.28997221,601.26,599.66,0.30610732]
[1745552245173,0.28997221,601.26,599.36,0.30610732]
[1745552245372,1.25759526,601.31,599.37,0.30610732]
[1745552245572,1.25759526,601.31,599.31,0.30610732]
[1745552245772,0.28998429,601.25,599.35,0.28998429]
[1745552246073,0.28998429,601.25,599.36,0.30610732]
[1745552246974,0.28998429,601.25,599.35,0.28998429]
[1745552247276,0.28998429,601.25,599.36,0.3061062]
[1745552247575,0.28998429,601.25,599.37,1.327]
[1745552247873,0.28998429,601.25,599.38,0.3061062]
[1745552248073,0.28998429,601.25,599.42,1.0596617]
[1745552248274,0.28998429,601.25,599.43,0.3061062]
[1745552248573,1.25759526,601.3,599.43,0.3061062]
[1745552248769,0.28997704,601.24,599.43,1.4801062]
[1745552249074,0.28997704,601.24,599.44,0.3061062]
[1745552250271,0.28997704,601.24,599.45,0.30610519]
[1745552250475,0.28997704,601.24,599.44,0.30610519]
[1745552250776,0.28997704,601.24,599.45,0.30610519]
[1745552250977,0.28997704,601.24,599.46,0.30610519]
[1745552251181,0.28997704,601.24,599.44,0.30610519]
[1745552251383,1.25759526,601.35,599.45,0.30610519]
[1745552251582,1.25759526,601.35,599.44,0.30610519]
[1745552251785,0.28996979,601.34,599.45,0.30610519]
[1745552252082,0.28996979,601.34,599.46,0.30610519]
[1745552252283,0.28996979,601.34,599.44,0.30610519]
[1745552252584,1.25759526,601.32,599.44,0.30610519]
[1745552253284,1.25759526,601.32,599.43,1.174]
[1745552253485,1.25759526,601.32,599.44,0.30610889]
[1745552254685,0.28997342,601.31,599.44,0.30610889]
[1745552255387,1.25759526,601.27,599.45,1.0596617]
[1745552255584,1.25759526,601.27,599.46,0.30610889]
[1745552256385,1.25759526,601.27,599.45,1.0596617]
[1745552256586,1.25759526,601.27,599.46,0.30610961]
[1745552257684,1.25759526,601.22,599.46,0.30610961]
[1745552257884,1.25759526,601.22,599.44,0.30610961]
[1745552259584,1.25759526,601.22,599.43,1.174]
[1745552259784,1.25759526,601.1,599.46,1.0596617]
[1745552259989,1.25759526,601.1,599.47,0.30611718]
[1745552260888,0.29000363,601.09,599.47,0.30611718]
[1745552261990,0.29000363,601.09,599.54,1.0596617]
[1745552262191,0.29000363,601.09,599.55,0.30611718]
[1745552262691,0.29000363,601.09,599.54,1.0596617]
[1745552262892,0.29000363,601.09,599.55,0.30611244]
[1745552263191,0.29000363,601.09,599.54,1.0596617]
[1745552263393,1.25759526,601.13,599.54,1.0596617]
[1745552263691,0.28999033,601.08,599.54,1.0596617]
[1745552264192,0.28999033,601.08,599.43,1.174]
[1745552264491,0.28999033,601.08,599.44,0.30610712]
[1745552265090,0.28999033,601.08,599.4,0.30610712]
[1745552265293,0.28999033,601.08,599.41,0.30610712]
[1745552265493,0.28999033,601.08,599.4,0.30610712]
[1745552265792,0.28999033,601.08,599.41,0.30610874]
[1745552265993,0.28999033,601.08,599.42,0.30610874]
[1745552266193,0.28999033,601.08,599.43,0.30610874]
[1745552266393,1.25759526,601.53,599.4,0.30610874]
[1745552266593,1.25759526,601.54,599.41,0.30610874]
[1745552266794,0.28996013,601.07,599.4,0.30610874]
[1745552266995,1.25759526,601.54,599.41,1.30310874]
[1745552267296,1.25759526,601.54,599.41,0.997]
[1745552267495,1.25759526,601.54,599.42,0.30610966]
[1745552267693,0.28995651,601.53,599.42,0.30610966]
[1745552267995,0.28995651,601.53,599.42,1.74710966]
[1745552268194,0.28995651,601.53,599.43,0.30610966]
[1745552269397,1.25759526,601.57,599.43,0.30610966]
[1745552269697,0.28994443,601.52,599.43,0.30610966]
[1745552271892,0.28994443,601.52,599.42,1.441]
[1745552272088,0.28994443,601.52,599.43,0.30610151]
[1745552272395,1.25759526,601.59,599.43,0.30610151]
[1745552272794,0.28994201,601.58,599.43,0.30610151]
[1745552273490,0.28994201,601.58,599.42,1.441]
[1745552273694,0.28994201,601.58,599.43,0.30610124]
[1745552275098,1.25759526,601.34,599.48,1.0596617]
[1745552275293,1.25759526,601.34,599.49,0.30610124]
[1745552275690,0.28996496,601.33,599.49,0.30610124]
[1745552278398,1.25759526,601.34,599.49,0.30610124]
[1745552278598,1.25759526,601.34,599.5,0.30609944]
[1745552278799,1.25759526,601.09,599.59,1.0596617]
[1745552278997,1.25759526,601.09,599.6,0.30609944]
[1745552279899,1.25759526,601.09,599.61,1.198]
[1745552280099,1.25759526,601.09,599.62,0.30609944]
[1745552281500,1.25759526,601.09,599.63,1.065]
[1745552281700,0.2899553,601.08,599.63,1.065]
[1745552282201,1.25759526,601.05,599.64,0.3060578]
[1745552282599,1.25759526,601.05,599.63,1.065]
[1745552282801,1.25759526,601.05,599.64,0.30605829]
[1745552282998,1.25759526,601.05,599.63,1.065]
[1745552283194,1.25759526,601.05,599.65,1.306]
[1745552283501,1.25759526,601.05,599.66,0.30605245]
[1745552283695,1.25759526,601.05,599.65,1.306]
[1745552283899,0.2899553,601.08,599.65,1.306]
[1745552284402,1.25759526,601.57,599.65,1.306]
[1745552284702,0.2898925,601.07,599.65,1.306]
[1745552284901,1.25759526,601.57,599.65,1.306]
[1745552285999,0.2898925,601.56,599.65,1.306]
[1745552287403,1.25759526,601.59,599.65,1.306]
[1745552287798,0.28988767,601.58,599.66,0.30605398]
[1745552288302,0.28988767,601.58,599.65,1.306]
[1745552290403,1.25759526,601.62,599.65,1.306]
[1745552290900,0.28985749,601.57,599.65,1.306]
[1745552296410,1.25759526,602.71,599.65,1.306]
[1745552296802,0.28972597,601.56,599.65,1.306]
[1745552297106,1.25759526,602.71,599.65,1.306]
[1745552297710,0.28972597,602.7,599.65,1.306]
[1745552298209,0.28972597,602.7,599.66,0.30599147]
[1745552298504,1.25759526,602.63,599.66,0.30599147]
[1745552299607,0.28973562,602.62,599.66,0.30599147]
[1745552300809,1.25759526,601.8,599.66,0.30599147]
[1745552302713,1.25759526,601.8,599.65,1.306]
[1745552302913,1.25759526,601.8,599.66,1.32984366]
[1745552303108,1.25759526,601.8,599.67,0.30584366]
[1745552303308,1.25759526,601.88,599.67,0.30584366]
[1745552304214,1.25759526,601.88,599.66,1.024]
[1745552304418,1.25759526,601.88,599.67,0.30580525]
[1745552305718,0.28974768,601.87,599.67,0.30580525]
[1745552305911,0.28974768,601.87,599.68,0.3058111]
[1745552306110,0.28974768,601.87,599.69,0.3058111]
[1745552307919,0.28974768,601.87,599.7,1.12]
[1745552308214,0.28974768,601.87,599.71,0.3058111]
[1745552308418,1.25759526,602.34,599.71,0.3058111]
[1745552308714,1.25759526,602.32,599.71,0.3058111]
[1745552309621,0.28968497,602.31,599.71,0.3058111]
[1745552310523,0.28968497,602.31,599.7,1.12]
[1745552310718,0.28968497,602.31,599.71,0.30580718]
[1745552311425,1.25759526,602.59,599.71,0.30580718]
[1745552312120,1.25759526,602.59,599.7,1.12]
[1745552312423,1.25759526,602.59,599.71,0.30577691]
[1745552312822,0.28964277,602.58,599.71,0.30577691]
[1745552313623,0.28964277,602.58,599.7,1.12]
[1745552313824,0.28964277,602.58,599.71,0.30579433]
[1745552314526,1.25759526,603.07,599.71,0.30579433]
[1745552314928,0.28958493,602.57,599.71,0.30579433]
[1745552315128,1.25759526,603.07,599.71,0.30579433]
[1745552315427,1.25759526,603.07,599.72,0.30578566]
[1745552315629,1.25759526,603.07,599.73,0.30578566]
[1745552315831,0.28958493,603.06,599.71,0.30578566]
[1745552316126,0.28958493,603.06,599.72,0.30578566]
[1745552316328,0.28958493,603.06,599.72,1.07]
[1745552316522,0.28958493,603.06,599.73,0.30578566]
[1745552316828,0.28958493,603.06,599.72,1.07]
[1745552317028,0.28958493,603.06,599.73,0.30578826]